Cogmind - Beta 15 @@@ ROGUE MODE // 2025.07.11 @ 05:18:26 Player: LameThyst Result: Destroyed by H-66 Slayer with Gauss Rifle Performance ------------- Evolutions (4) 2000 Regions Visited (15) 3000 Robots Destroyed (110) 550 Value Destroyed (4418) 4418 Prototype IDs (32) 640 Alien Tech Used (0) 0 Bonus (1650) 1650 TOTAL SCORE: 12258 Bonus ------- High Alert Combat Kills 32 Follower Combat Kills 618 Network Hubs Disabled 400 Aligned with FarCom 300 Met Imprinter 300 Cogmind --------- Core Integrity 0/850 Matter 39/300 Energy 100/100 System Corruption 18% Temperature Cool (0) Movement Core (400) Ox7 Location -6/Hub_04(d) Parts ------- > --- POWER (1) -------- (None) > --- PROPULSION (5) --- (None) > --- UTILITY (6) ------ Large Storage Unit Advanced Signal Interpreter Advanced Targeting Computer Improved Hacking Suite > --- WEAPON (3) ------- Power Sword > --- INVENTORY (15) --- Light Angular Momentum Engine Armored Leg Advanced Heat Sink Structural Scanner Improved Sensor Array Stasis Canceller Transmission Jammer Makeshift ECM Suite Gauss Rifle KE Penetrator Remote Datajack Peak State ------------ > --- POWER ------------ Neutrino Core > --- PROPULSION ------- Armored Leg Armored Leg Armored Leg Myomer Leg Potential Leg > --- UTILITY ---------- Large Storage Unit Advanced Signal Interpreter Makeshift ECM Suite Improved Medium Armor Plating Improved Hacking Suite System Shield > --- WEAPON ----------- Wave Gun KE Penetrator Power Sword > --- INVENTORY -------- Light Angular Momentum Engine Flexi-carbon Leg Armored Leg Armored Leg Advanced Heat Sink Improved Cooling System Structural Scanner Improved Sensor Array Stasis Canceller Transmission Jammer Improved Core Shielding Improved Medium Armor Plating Gauss Rifle Precision Assault Rifle Long-range Missile Launcher [Rating: 82] Favorites ----------- Power Ion Engine Engine Ion Engine Power Core Fission Core Propulsion Potential Leg Treads Light Treads Leg Potential Leg Wheel Armored Huge Wheel Utility Large Storage Unit Device Structural Scanner Storage Large Storage Unit Processor Advanced Signal Interpreter Hackware System Shield Protection Improved Medium Armor Plating Weapon Advanced Beam Rifle Energy Gun Advanced Beam Rifle Ballistic Gun Gauss Rifle Launcher Long-range Missile Launcher Special Weapon Mining Laser Slashing Weapon Makeshift Axe Build | -11 -10 -10 -10 -9 -8 -7 -7 -7 -7 -6 -6 -6 -6 -6 -6 ------- Run | Yrd Mat Min Exi Min Mat Fac Low Low Zio Pro Fac Ext Cet Arc Hub Slots Evolved 8 | . . . . . 4 2 . . . . 2 . . . . Power . | . . . . . . . . . . . . . . . . Propulsion 3 | . . . . . 2 1 . . . . . . . . . Utility 4 | . . . . . 2 1 . . . . 1 . . . . Weapon 1 | . . . . . . . . . . . 1 . . . . Parts Attached 116 | 7 18 2 2 . 19 5 3 3 7 2 12 20 1 6 9 Power 17 | 1 2 1 . . 2 1 . 1 1 . 2 4 . 1 1 Engine 11 | 1 2 1 . . 1 1 . . 1 . 1 3 . . . Core 6 | . . . . . 1 . . 1 . . 1 1 . 1 1 Reactor . | . . . . . . . . . . . . . . . . Propulsion 24 | 2 1 . 2 . 4 2 . . 1 . 5 3 . 1 3 Treads 4 | 2 1 . . . 1 . . . . . . . . . . Leg 19 | . . . 2 . 3 2 . . . . 5 3 . 1 3 Wheel 1 | . . . . . . . . . 1 . . . . . . Hover . | . . . . . . . . . . . . . . . . Flight . | . . . . . . . . . . . . . . . . Utility 35 | 2 4 . . . 5 1 2 . 4 1 3 7 1 2 3 Device 11 | 1 . . . . 2 . . . 2 1 2 2 . 1 . Storage 4 | 1 2 . . . . . . . 1 . . . . . . Processor 3 | . . . . . . . . . . . 1 1 . . 1 Hackware 2 | . . . . . . 1 . . . . . 1 . . . Protection 15 | . 2 . . . 3 . 2 . 1 . . 3 1 1 2 Artifact . | . . . . . . . . . . . . . . . . Weapon 40 | 2 11 1 . . 8 1 1 2 1 1 2 6 . 2 2 Energy Gun 16 | 1 4 . . . 4 . . . . 1 1 2 . 1 2 Energy Cannon . | . . . . . . . . . . . . . . . . Ballistic Gun 16 | 1 6 1 . . 2 1 . 2 . . 1 1 . 1 . Ballistic Cannon . | . . . . . . . . . . . . . . . . Launcher 4 | . . . . . 1 . 1 . . . . 2 . . . Special Weapon 1 | . 1 . . . . . . . . . . . . . . Impact Weapon . | . . . . . . . . . . . . . . . . Slashing Weapon 3 | . . . . . 1 . . . 1 . . 1 . . . Piercing Weapon . | . . . . . . . . . . . . . . . . Special Melee Weapon . | . . . . . . . . . . . . . . . . Unidentified Prototypes 8 | . 1 . . . 4 1 . . 1 . . . . . 1 Parts Lost 33 | . 1 2 . . 1 1 3 2 . . . 2 1 4 16 Power 5 | . . 1 . . 1 . . 1 . . . . . . 2 Propulsion 12 | . 1 . . . . 1 2 . . . . 1 . . 7 Utility 7 | . . . . . . . 1 . . . . . . 2 4 Weapon 9 | . . 1 . . . . . 1 . . . 1 1 2 3 Highest Loss Streak 13 | . 1 1 . . 1 1 2 2 . . . 1 1 1 13 To Critical Strikes . | . . . . . . . . . . . . . . . . Average Backups 14 | 2 13 13 14 15 13 14 14 14 14 15 14 14 14 14 14 Power . | . 1 . 1 1 1 1 1 . . 1 1 1 1 1 . Propulsion . | . . . . 1 . . . . . . 1 1 3 3 1 Utility 6 | . 6 7 8 8 5 5 5 6 6 7 5 6 7 7 8 Weapon 5 | . 5 5 5 5 7 7 7 7 7 7 6 5 3 2 3 Tool/Special . | . . . . . . . . . . . . . . . . Unused Backups 41 | . 8 1 . . 8 5 1 . 2 . 4 5 . 1 6 Power 5 | . 1 . . . . . 1 . . . 1 2 . . . Propulsion 3 | . 3 . . . . . . . . . . . . . . Utility 20 | . 2 . . . 5 2 . . 1 . 2 2 . 1 5 Weapon 12 | . 2 1 . . 3 3 . . 1 . 1 1 . . . Tool/Special 1 | . . . . . . . . . . . . . . . 1 Average Slot Usage (%) 96 | . 97 99 99 100 98 98 90 81 90 92 97 99 100 98 98 Engine 6 | . 14 14 14 14 6 7 7 . 3 7 5 . . . 2 Core 1 | . . . . . 2 . . 4 3 . . 5 6 5 3 Treads 5 | . 26 28 13 . 4 . . . . . . . . . . Leg 24 | . . . 14 28 30 36 29 23 23 23 30 33 33 33 31 Device 12 | . 4 14 14 14 19 23 11 7 12 23 14 8 . 6 7 Storage 8 | . 14 14 14 14 9 7 7 7 7 7 6 6 6 6 6 Processor 2 | . . . . . . . . . . . 4 6 6 6 6 Hackware 5 | . . . . . . 6 7 7 7 7 6 8 13 13 12 Protection 6 | . 9 . . . 7 . 10 15 9 . 5 7 11 5 4 Energy Gun 6 | . 13 . . . 8 7 6 . . 7 7 4 6 5 7 Ballistic Gun 10 | . 14 26 28 28 8 6 6 13 7 7 7 12 6 7 6 Slashing Weapon 1 | . . . . . . . . . 6 . 2 . . 3 4 Peak Build Rating 82 | 7 12 13 31 31 49 49 49 48 62 58 76 80 76 80 82 Average Rating 50 | 5 9 12 22 31 43 47 48 46 56 56 71 75 75 75 73 On Entrance 43 | . 7 12 13 31 31 45 49 48 48 56 58 75 74 76 80 Naked Turns . | . . . . . . . . . . . . . . . . Heaviest Build 70 | 13 32 32 32 32 43 39 46 46 58 34 70 70 50 55 63 Greatest Support 117 | 40 40 40 60 60 92 102 95 70 70 70 108 117 103 103 103 Greatest Overweight (x) 10 | . 1 . 1 . . . . . . . . . . . 10 Average Overweight (x) . | . . . . . . . . . . . . . . . . Largest Inventory Capacity 35 | 8 15 15 15 15 15 15 15 15 35 15 15 15 15 15 15 Average Capacity 14 | 7 14 15 15 15 15 15 15 15 15 15 15 15 15 15 15 Most Carried 15 | 5 15 15 15 15 15 15 15 15 15 15 15 15 15 15 15 Average Carried 14 | 2 13 13 14 15 13 14 14 14 14 15 14 14 14 14 14 Final Capacity 15 | 8 15 15 15 15 15 15 15 15 15 15 15 15 15 15 15 Final Carried 15 | 5 14 14 15 15 15 15 15 14 15 15 15 15 14 14 11 Class Distribution -------------------- 56% | Mutant 8% | Infiltrator-Skirmisher 7% | Hacker-Mutant 7% | Derelict-Mutant 6% | Hacker-Skirmisher 3% | Tank Dominant Class ---------------- Mutant | -10/Materials Mutant | -10/Mines Mutant | -10/Exiles Mutant | -9/Mines Mutant | -8/Materials Mutant | -7/Factory Mutant | -7/Lower Caves Mutant | -7/Lower Caves Mutant | -7/Zion Mutant | -6/Proximity Caves Infiltrator-Skirmisher | -6/Factory Hacker-Skirmisher | -6/Extension Hacker-Tank | -6/Cetus Hacker-Mutant | -6/Archives Hacker-Mutant | -6/Hub_04(d) Resources | -11 -10 -10 -10 -9 -8 -7 -7 -7 -7 -6 -6 -6 -6 -6 -6 ----------- Run | Yrd Mat Min Exi Min Mat Fac Low Low Zio Pro Fac Ext Cet Arc Hub Matter Collected 3974 | 283 277 196 . 20 572 161 255 97 124 10 391 930 . 319 339 Remotely . | . . . . . . . . . . . . . . . . Salvage Created 4277 | 144 389 516 . . 617 259 107 206 . . 391 766 22 319 541 Parts 227 | 7 29 15 . . 39 14 14 7 . . 25 34 . 11 32 Haulers Intercepted 2 | . . . . . 1 1 . . . . . . . . . Recyclers Shooed 7 | . 1 1 . . 2 . . . . . 1 1 . . 1 Parts Field Recycled . | . . . . . . . . . . . . . . . . Retrieved Matter . | . . . . . . . . . . . . . . . . Parts Self-Destructed 15 | . . . . . . . 8 7 . . . . . . . Prevented . | . . . . . . . . . . . . . . . . Kills | -11 -10 -10 -10 -9 -8 -7 -7 -7 -7 -6 -6 -6 -6 -6 -6 ------- Run | Yrd Mat Min Exi Min Mat Fac Low Low Zio Pro Fac Ext Cet Arc Hub Combat Hostiles Destroyed 89 | . 15 6 . . 13 6 7 4 . . 9 13 4 4 8 Guns 76 | . 15 6 . . 11 6 4 4 . . 9 10 1 4 6 AOE 13 | . . . . . 2 . 3 . . . . 3 3 . 2 Classes Destroyed 15 | 2 3 . . . 5 1 1 . . . . 1 . . 2 Worker 3 | . . . . . 1 . . . . . . . . . 2 Builder 3 | . . . . . 2 . . . . . . 1 . . . Tunneler 2 | 2 . . . . . . . . . . . . . . . Hauler 2 | . . . . . 1 1 . . . . . . . . . Recycler 7 | 1 . 3 . . 1 . . . . . . 2 . . . Operator 1 | . . . . . . . . . . . . . . . 1 Watcher 3 | . 1 . . . 1 . . . . . . . 1 . . Swarmer 31 | . 9 . . . 6 3 6 . . . 3 4 . . . Grunt 21 | . 6 6 . . 2 1 . 4 . . 1 1 . . . Sentry 17 | . . . . . 3 1 . . . . 2 4 . 4 3 Specialist 2 | . . . . . . . . . . . . . . . 2 Hunter 6 | . . . . . 2 . . . . . . 2 . . 2 Programmer 6 | . . . . . . 1 . . . . 3 1 . . 1 Behemoth 1 | . . . . . . . . . . . . 1 . . . Cetus Guard 4 | . . . . . . . . . . . . . 4 . . Thief 1 | . . . . . . . 1 . . . . . . . . Best Kill Streak 5 | 1 5 4 . . 4 4 5 4 . . 2 3 5 1 2 Combat Bots Only 5 | . 5 3 . . 4 4 5 4 . . 2 2 4 1 2 Max Kills in Single Turn 2 | 1 1 1 . . 2 2 2 1 . . 1 2 2 1 2 Gunslinging 1 | . . . . . . 1 1 . . . . 1 . . . Exploded 2 | . . . . . 1 . 2 . . . . 1 1 . 2 Melee . | . . . . . . . . . . . . . . . . Uniques/NPCs Destroyed . | . . . . . . . . . . . . . . . . Combat | -11 -10 -10 -10 -9 -8 -7 -7 -7 -7 -6 -6 -6 -6 -6 -6 -------- Run | Yrd Mat Min Exi Min Mat Fac Low Low Zio Pro Fac Ext Cet Arc Hub Hostile Shots Fired 895 | . 86 26 . . 61 88 31 35 . . 81 173 46 30 238 Missed 270 | . 16 3 . . 19 27 7 9 . . 29 55 17 6 82 Hits 625 | . 70 23 . . 42 61 24 26 . . 52 118 29 24 156 Melee 6 | . . . . . . . 6 . . . . . . . . Projectile 619 | . 70 23 . . 42 61 18 26 . . 52 118 29 24 156 Critical Strikes 24 | . . 1 . . 4 1 . 2 . . . 1 11 1 3 Actively Blocked 1 | . . . . . 1 . . . . . . . . . . Part Disruptions 1 | . . . . . . . . . . . . . . . 1 Damage Taken 9349 | . 636 326 . . 562 700 402 429 . . 546 1429 769 563 2987 Core 1176 | . 67 36 . . 61 79 52 16 . . 46 108 79 63 569 Absorbed by Shields . | . . . . . . . . . . . . . . . . Redirected to Shielding 20 | . 12 . . . 8 . . . . . . . . . . Ignored by Resistances 284 | . . . . . . . . . . . 87 197 . . . Regen/Repaired (Parts) 477 | . 166 . . . 72 . . . . . 239 . . . . Core Remaining (%) 81 | 100 . . . 58 88 . . . . 79 . . . . . Volleys Fired 359 | 13 74 23 . . 56 20 13 13 . 5 24 40 15 28 35 Largest 3 | 2 2 2 . . 2 2 2 2 . 2 3 3 3 3 3 Hottest 174 | 60 100 68 . . 86 89 100 86 . 89 148 148 132 134 174 Shots Fired 768 | 26 146 45 . . 111 39 26 25 . 10 70 105 38 47 80 Gun 735 | 26 145 45 . . 106 39 22 25 . 10 70 97 25 47 78 Cannon . | . . . . . . . . . . . . . . . . Launcher 32 | . . . . . 5 . 4 . . . . 8 13 . 2 Special 1 | . 1 . . . . . . . . . . . . . . Kinetic 403 | 13 73 41 . . 52 19 11 18 . 5 40 64 12 20 35 Thermal 295 | 13 64 . . . 54 20 11 7 . 5 24 20 13 21 43 Explosive 32 | . . . . . 5 . 4 . . . . 8 13 . 2 Electromagnetic 38 | . 9 4 . . . . . . . . 6 13 . 6 . Robot Hit Streak 32 | 6 10 18 . . 25 13 6 10 . . 6 13 15 32 11 Robot Miss Streak 19 | 2 12 1 . . 4 2 9 2 . 10 11 19 1 6 3 Penetration Max 1 | . . . . . . . . . . . 1 . . 1 1 Secondary Targets 9 | . 1 . . . . 2 2 1 . . . 3 . . . Max Gunslinging Chain 1 | . 1 . . . . 1 1 1 . . . 1 . . . Shots Hit Robots 479 | 20 73 37 . . 70 28 13 21 . . 42 56 32 33 54 Core Hits 241 | 5 25 16 . . 28 13 9 11 . . 20 39 34 19 22 Critical Kills 4 | . . . . . . . . . . . 2 1 . 1 . Critical Parts Destroyed 1 | . . . . . . . . . . . . . . . 1 Critical Strikes 18 | . . . . . 4 1 1 2 . . 6 1 . 1 2 Burn 13 | . . . . . 4 1 1 2 . . 4 . . . 1 Destroy 5 | . . . . . . . . . . . 2 1 . 1 1 Melee Attacks 55 | . . . . . 3 2 . . 1 . 6 37 . . 6 Impact . | . . . . . . . . . . . . . . . . Slashing 55 | . . . . . 3 2 . . 1 . 6 37 . . 6 Piercing . | . . . . . . . . . . . . . . . . Sneak Attacks . | . . . . . . . . . . . . . . . . Combat Hostiles . | . . . . . . . . . . . . . . . . Follow-up Attacks . | . . . . . . . . . . . . . . . . Damage Inflicted 10670 | 197 831 572 . . 1437 561 647 338 . . 902 1306 1481 706 1692 Guns 8035 | 197 831 572 . . 1168 561 226 338 . . 902 898 406 706 1230 Cannons . | . . . . . . . . . . . . . . . . Explosions 2635 | . . . . . 269 . 421 . . . . 408 1075 . 462 Melee . | . . . . . . . . . . . . . . . . Ramming . | . . . . . . . . . . . . . . . . Kinetic 4495 | 81 347 503 . . 519 301 106 238 . . 519 679 226 362 614 Thermal 3206 | 116 375 . . . 649 260 120 100 . . 371 172 180 247 616 Explosive 2238 | . . . . . 269 . 421 . . . . 368 1075 . 105 Electromagnetic 731 | . 109 69 . . . . . . . . 12 87 . 97 357 Impact . | . . . . . . . . . . . . . . . . Slashing . | . . . . . . . . . . . . . . . . Piercing . | . . . . . . . . . . . . . . . . Highest Corruption 17 | . . . . . . 4 4 4 4 . 7 7 7 7 17 Average Corruption 5 | . . . . . . 3 4 4 4 . 4 7 7 7 8 Corruption Purged . | . . . . . . . . . . . . . . . . Corruption Blocked . | . . . . . . . . . . . . . . . . Effects 171 | . . . . . . 15 17 4 5 . 21 51 11 19 28 Message Errors 39 | . . . . . . 4 5 . 1 . 7 9 3 5 5 Matter Fused 37 | . . . . . . 4 7 2 1 . 2 13 2 3 3 Heat Flow Errors 21 | . . . . . . 1 1 . . . 3 8 1 3 4 Energy Discharges 22 | . . . . . . 2 2 1 1 . 4 4 2 3 3 Parts Rejected 1 | . . . . . . . . . . . . . . . 1 Parts Fused 3 | . . . . . . . . . 1 . . 2 . . . Data Loss (minor) 27 | . . . . . . 3 1 1 1 . 3 8 2 3 5 Data Loss (major) 8 | . . . . . . . 1 . . . 1 2 . 2 2 Misfires 3 | . . . . . . . . . . . . 2 . . 1 Alerts 2 | . . . . . . . . . . . 1 1 . . . Misdirections 1 | . . . . . . . . . . . . . . . 1 Weapon Failures 7 | . . . . . . 1 . . . . . 2 1 . 3 Overload Shots . | . . . . . . . . . . . . . . . . Overflow Damage 76 | . . . . . . . 18 . . . . . 25 . 33 Projectiles . | . . . . . . . . . . . . . . . . Explosions 76 | . . . . . . . 18 . . . . . 25 . 33 Melee . | . . . . . . . . . . . . . . . . Knockbacks . | . . . . . . . . . . . . . . . . Impact . | . . . . . . . . . . . . . . . . Kinetic . | . . . . . . . . . . . . . . . . Secondary . | . . . . . . . . . . . . . . . . Self-Inflicted Damage 437 | . . . . . . . 63 . . . . 163 . . 211 Shots 7 | . . . . . . . 1 . . . . 4 . . 2 Rammed . | . . . . . . . . . . . . . . . . Targets Rammed . | . . . . . . . . . . . . . . . . Kicked . | . . . . . . . . . . . . . . . . Crushed . | . . . . . . . . . . . . . . . . Highest Temperature 491 | 40 94 75 . . 23 102 239 9 . 60 335 443 403 242 491 Average Temperature 86 | 19 22 26 . . 15 56 131 9 . 28 106 106 159 78 124 Received Heat Transfer 1485 | . 138 201 . . 180 78 . 270 . . 84 279 . 99 156 Effects 9 | . . . . . . . . . . . 2 4 2 . 1 Shutdowns 3 | . . . . . . . . . . . . 1 2 . . Energy Bleed 1 | . . . . . . . . . . . . 1 . . . Interference 2 | . . . . . . . . . . . 2 . . . . Short Circuit 1 | . . . . . . . . . . . . 1 . . . Damage (minor) 1 | . . . . . . . . . . . . 1 . . . Damage (major) 1 | . . . . . . . . . . . . . . . 1 Siege Activations . | . . . . . . . . . . . . . . . . Martial Activations . | . . . . . . . . . . . . . . . . Shielding Activations . | . . . . . . . . . . . . . . . . Robots Disrupted . | . . . . . . . . . . . . . . . . Combat Hostiles . | . . . . . . . . . . . . . . . . Robots Corrupted . | . . . . . . . . . . . . . . . . Combat Hostiles . | . . . . . . . . . . . . . . . . Parts Fried 1 | . . . . . . . . . . . . . . . 1 Impact Corruptions . | . . . . . . . . . . . . . . . . Robots Melted . | . . . . . . . . . . . . . . . . Combat Hostiles . | . . . . . . . . . . . . . . . . Parts Melted 9 | . . . . . 2 . . 2 . . 2 1 . . 2 Heat Transferred 7029 | 275 850 . . . 1517 518 296 333 . . 1005 300 333 444 1158 Parts Sabotaged . | . . . . . . . . . . . . . . . . Parts Stolen 2 | . . . . . . . 2 . . . . . . . . Parts Stripped . | . . . . . . . . . . . . . . . . Power Chain Reactions 1 | . . . . . . . . . . . . 1 . . . Alert | -11 -10 -10 -10 -9 -8 -7 -7 -7 -7 -6 -6 -6 -6 -6 -6 ------- Run | Yrd Mat Min Exi Min Mat Fac Low Low Zio Pro Fac Ext Cet Arc Hub Maximum Alert Level 2 | . . . . . . . . . . . 2 1 1 . 2 Low Security (%) 85 | 100 100 100 . 100 100 100 . . . . 66 81 30 100 56 Level 1 10 | . . . . . . . . . . . 14 18 69 . 36 Level 2 3 | . . . . . . . . . . . 19 . . . 6 Level 3 . | . . . . . . . . . . . . . . . . Level 4 . | . . . . . . . . . . . . . . . . Level 5 . | . . . . . . . . . . . . . . . . High Security . | . . . . . . . . . . . . . . . . Max Security . | . . . . . . . . . . . . . . . . Peak Influence 600 | 5 185 80 . . 103 91 . . . . 600 276 242 68 595 Initial 600 | . . . . . . 16 . . . . 600 33 154 68 4 Average 86 | 1 62 24 . . 31 16 . . . . 156 116 206 14 166 Influence Increases 4764 | 15 503 180 . . 429 189 140 90 . . 954 1041 158 110 955 Destroy 0b10 Robot/C 2080 | . 300 120 . . 260 120 120 80 . . 180 580 80 80 160 Destroy 0b10 Robot/NC 120 | 15 5 15 . . 30 5 . . . . . 30 5 . 15 Destroy Leader 430 | . 52 30 . . 74 32 20 10 . . 60 92 . . 60 Allied During Kill 93 | . . . . . . . . . . . . 93 . . . Successful Hack 269 | . 41 . . . 27 13 . . . . 47 46 15 . 80 Disable Machine 600 | . 15 . . . . . . . . . 45 45 15 30 450 Destroy Structure 362 | . . . . . 23 4 . . . . 7 95 43 . 190 Advance Influence 600 | . . . . . . . . . . . 600 . . . . Partial Spotted 30 | . 15 . . . . 15 . . . . . . . . . Lose Combat Pursuer 180 | . 75 15 . . 15 . . . . . 15 60 . . . Influence Decreases 4317 | 15 503 180 . . 393 201 164 90 . . 885 834 262 268 522 Entered New Map 302 | . . . . . . 20 10 . . . . 36 122 104 10 Time Decay 3127 | 15 493 170 . . 373 171 144 70 . . 495 568 130 146 352 Search Patrol Dispatched 150 | . . . . . . . . . . . 150 . . . . Lost Part 268 | . 10 10 . . 10 10 10 20 . . . 10 10 18 160 Lost Ally 230 | . . . . . 10 . . . . . . 220 . . . Purge Threat 240 | . . . . . . . . . . . 240 . . . . Squads Dispatched 20 | . 3 . . . . 4 . . . . 4 3 . . 6 Investigation 2 | . 1 . . . . . . . . . . . . . 1 Extermination 7 | . . . . . . 1 . . . . 4 . . . 2 Reinforcement 10 | . 2 . . . . 2 . . . . . 3 . . 3 Assault . | . . . . . . . . . . . . . . . . Garrison 1 | . . . . . . 1 . . . . . . . . . Intercept . | . . . . . . . . . . . . . . . . Searches Triggered 1 | . . . . . . . . . . . 1 . . . . Construction Impeded . | . . . . . . . . . . . . . . . . Haulers Reinforced . | . . . . . . . . . . . . . . . . Active Scanning Responses . | . . . . . . . . . . . . . . . . Cargo Convoy Interrupts . | . . . . . . . . . . . . . . . . Stealth | -11 -10 -10 -10 -9 -8 -7 -7 -7 -7 -6 -6 -6 -6 -6 -6 --------- Run | Yrd Mat Min Exi Min Mat Fac Low Low Zio Pro Fac Ext Cet Arc Hub Distress Signals 13 | . . . . . 5 . . . . . 1 2 2 . 3 Communications Jammed 1 | . . . . . . . . . . 1 . . . . . Distress Signals . | . . . . . . . . . . . . . . . . Times Spotted 180 | . 32 6 . . 30 7 9 4 . 3 16 42 5 8 18 Peak Tracking Total 7 | . 5 2 . . 5 4 4 4 . 2 5 5 5 1 7 Tactical Retreats 17 | . 3 1 . . 1 . . . . . 2 8 . . 2 Traps | -11 -10 -10 -10 -9 -8 -7 -7 -7 -7 -6 -6 -6 -6 -6 -6 ------- Run | Yrd Mat Min Exi Min Mat Fac Low Low Zio Pro Fac Ext Cet Arc Hub Traps Triggered 4 | . . . . . . . . . . . 2 1 . . 1 Indirectly . | . . . . . . . . . . . . . . . . Trap Hack Attempts . | . . . . . . . . . . . . . . . . Triggered . | . . . . . . . . . . . . . . . . Disarmed . | . . . . . . . . . . . . . . . . Reprogrammed . | . . . . . . . . . . . . . . . . Reused . | . . . . . . . . . . . . . . . . Traps Extracted . | . . . . . . . . . . . . . . . . Installed . | . . . . . . . . . . . . . . . . Triggered . | . . . . . . . . . . . . . . . . Machines | -11 -10 -10 -10 -9 -8 -7 -7 -7 -7 -6 -6 -6 -6 -6 -6 ---------- Run | Yrd Mat Min Exi Min Mat Fac Low Low Zio Pro Fac Ext Cet Arc Hub Machines Disabled 40 | . 1 . . . . . . . . . 3 3 1 2 30 Max in Single Turn 14 | . 1 . . . . . . . . . 1 1 1 1 14 Garrison Access 2 | . . . . . . . . . . . 1 . . . 1 Network Hub 2 | . . . . . . . . . . . . . . . 2 Machines Repaired . | . . . . . . . . . . . . . . . . Machines Dismantled . | . . . . . . . . . . . . . . . . Machines Sabotaged . | . . . . . . . . . . . . . . . . Overloaded Fab Kills . | . . . . . . . . . . . . . . . . Hacking | -11 -10 -10 -10 -9 -8 -7 -7 -7 -7 -6 -6 -6 -6 -6 -6 --------- Run | Yrd Mat Min Exi Min Mat Fac Low Low Zio Pro Fac Ext Cet Arc Hub Machines Accessed 52 | . 9 . 2 . 9 2 . . . . 9 11 3 1 6 Terminals 39 | . 6 . . . 8 1 . . . . 6 10 3 . 5 Fabricators . | . . . . . . . . . . . . . . . . Repair Stations 4 | . 1 . . . 1 . . . . . 1 1 . . . Recycling Units 4 | . 2 . . . . 1 . . . . 1 . . . . Scanalyzers . | . . . . . . . . . . . . . . . . Garrison Access 2 | . . . . . . . . . . . 1 . . . 1 Total Hacks 192 | . 38 . 5 . 26 10 . . . . 30 23 14 25 21 Successful 115 | . 21 . 5 . 13 6 . . . . 21 10 4 25 10 Failed 77 | . 17 . . . 13 4 . . . . 9 13 10 . 11 Catastrophic 13 | . 5 . . . 1 . . . . . 1 2 3 . 1 Database Lockouts . | . . . . . . . . . . . . . . . . Manual 101 | . 29 . 1 . 19 9 . . 1 . 20 7 . . 15 Terminals 120 | . 21 . . . 20 7 . . . . 21 19 14 . 18 Fabricators . | . . . . . . . . . . . . . . . . Repair Stations 21 | . 6 . . . 6 . . . . . 5 4 . . . Recycling Units 17 | . 11 . . . . 3 . . . . 3 . . . . Scanalyzers . | . . . . . . . . . . . . . . . . Garrison Access 4 | . . . . . . . . . . . 1 . . . 3 Terminal Hacks 45 | . 1 . 5 . . . . . . . 4 5 4 25 1 Record 35 | . 1 . 4 . . . . . . . 2 . 3 25 . Robot Analysis 1 | . . . . . . . . . . . . 1 . . . Open Door 5 | . . . . . . . . . . . . 4 1 . . Unreport Threat 2 | . . . . . . . . . . . 2 . . . . Locate Traps 1 | . . . . . . . . . . . . . . . 1 Proto ID Catalog 1 | . . . 1 . . . . . . . . . . . . Fabricator Hacks . | . . . . . . . . . . . . . . . . Repair Station Hacks 15 | . 6 . . . 4 . . . . . 4 1 . . . Scan Component 9 | . 3 . . . 3 . . . . . 2 1 . . . Repair 6 | . 3 . . . 1 . . . . . 2 . . . . Recycling Unit Hacks 2 | . 1 . . . . 1 . . . . . . . . . Retrieve Components 2 | . 1 . . . . 1 . . . . . . . . . Scanalyzer . | . . . . . . . . . . . . . . . . Garrison Access Hacks 2 | . . . . . . . . . . . 1 . . . 1 Seal Access 2 | . . . . . . . . . . . 1 . . . 1 Unauthorized Hacks 51 | . 13 . . . 9 5 . . . . 12 4 . . 8 Terminals 42 | . 8 . . . 9 3 . . . . 10 4 . . 8 Track 1 | . . . . . . 1 . . . . . . . . . Assimilate 5 | . 1 . . . 3 . . . . . . 1 . . . Botnet 11 | . 2 . . . . . . . . . 4 3 . . 2 Disrupt 2 | . . . . . 1 1 . . . . . . . . . Operators 3 | . . . . . . . . . . . 1 . . . 2 Skim 20 | . 5 . . . 5 1 . . . . 5 . . . 4 Fabricators . | . . . . . . . . . . . . . . . . Repair Stations . | . . . . . . . . . . . . . . . . Recycling Units 9 | . 5 . . . . 2 . . . . 2 . . . . Reject 4 | . 2 . . . . 1 . . . . 1 . . . . Recyclers 3 | . 1 . . . . 1 . . . . 1 . . . . Mask 2 | . 2 . . . . . . . . . . . . . . Scanalyzers . | . . . . . . . . . . . . . . . . Garrison Access . | . . . . . . . . . . . . . . . . Data Cores Recovered . | . . . . . . . . . . . . . . . . Used . | . . . . . . . . . . . . . . . . Hacking Detections 40 | . 8 . . . 9 1 . . . . 8 5 3 . 6 Full Trace Events 1 | . . . . . . . . . . . . . . . 1 Feedback Events . | . . . . . . . . . . . . . . . . Feedback Blocked . | . . . . . . . . . . . . . . . . Robot Schematics Acquired 3 | . . . . . . . . . 3 . . . . . . Robots Built . | . . . . . . . . . . . . . . . . Authchips . | . . . . . . . . . . . . . . . . Time . | . . . . . . . . . . . . . . . . Total Robot Build Rating . | . . . . . . . . . . . . . . . . Part Schematics Acquired 15 | . . . . . . . . . 15 . . . . . . Parts Built . | . . . . . . . . . . . . . . . . Authchips . | . . . . . . . . . . . . . . . . Time . | . . . . . . . . . . . . . . . . Total Part Build Rating . | . . . . . . . . . . . . . . . . Parts Repaired 6 | . 3 . . . 1 . . . . . 2 . . . . Time 230 | . 78 . . . 64 . . . . . 88 . . . . Parts Recycled . | . . . . . . . . . . . . . . . . Recycled Matter . | . . . . . . . . . . . . . . . . Retrieved Matter . | . . . . . . . . . . . . . . . . Retrieved Components 6 | . 3 . . . . 3 . . . . . . . . . Parts Scanalyzed . | . . . . . . . . . . . . . . . . Part Schematics Acquired . | . . . . . . . . . . . . . . . . Parts Damaged . | . . . . . . . . . . . . . . . . Bothacking | -11 -10 -10 -10 -9 -8 -7 -7 -7 -7 -6 -6 -6 -6 -6 -6 ------------ Run | Yrd Mat Min Exi Min Mat Fac Low Low Zio Pro Fac Ext Cet Arc Hub Used RIF Installer . | . . . . . . . . . . . . . . . . Robots Hacked . | . . . . . . . . . . . . . . . . Non-combat . | . . . . . . . . . . . . . . . . Combat . | . . . . . . . . . . . . . . . . Robot Hacks Applied . | . . . . . . . . . . . . . . . . Relay Couplers Released . | . . . . . . . . . . . . . . . . Fabnet Peak Effective % . | . . . . . . . . . . . . . . . . Robots Rewired 11 | . . . . . . . . . . . . 11 . . . Allies Hacked . | . . . . . . . . . . . . . . . . Hacks Repelled . | . . . . . . . . . . . . . . . . Allies | -11 -10 -10 -10 -9 -8 -7 -7 -7 -7 -6 -6 -6 -6 -6 -6 -------- Run | Yrd Mat Min Exi Min Mat Fac Low Low Zio Pro Fac Ext Cet Arc Hub Total Allies 15 | . . . . . 1 . . . . . . 14 . . . Largest Group 5 | . . . . . 1 . . . . . . 5 . . . Highest-Rated Group 168 | . . . . . 10 . . . . . . 168 . . . Highest-Rated Ally 39 | . . . . . 10 . . . . . . 39 . . . Total Orders 3 | . . . . . . . . . . . . 3 . . . ROAM 1 | . . . . . . . . . . . . 1 . . . AID 1 | . . . . . . . . . . . . 1 . . . RETURN 1 | . . . . . . . . . . . . 1 . . . Ally Attacks 145 | . . . . . . . . . . . . 145 . . . Total Damage 2533 | . . . . . . . . . . . . 2533 . . . Kills 20 | . . . . . . . . . . . . 20 . . . Allies Corrupted 1 | . . . . . . . . . . . . 1 . . . Allies Melted 1 | . . . . . . . . . . . . 1 . . . Intel | -11 -10 -10 -10 -9 -8 -7 -7 -7 -7 -6 -6 -6 -6 -6 -6 ------- Run | Yrd Mat Min Exi Min Mat Fac Low Low Zio Pro Fac Ext Cet Arc Hub Active Infowar (turns) 9262 | 81 603 489 387 192 934 869 265 . 726 241 1808 1694 29 406 538 Sensors 1501 | . . . . . . . . . 726 241 534 . . . . Structural 6342 | . . . . . 928 869 265 . 21 241 1799 1493 . 406 320 Seismic 4176 | 81 603 489 387 192 933 869 262 . . . . 201 29 130 . Jamming 712 | . . . . . . . . . . 115 524 . . . 73 ECM 1123 | . . . . . . . . . . . 542 364 . . 217 Robot Analysis Total 1 | . . . . . . . . . . . . 1 . . . Derelict Logs Recovered 9 | . . 2 . 1 . . 3 . 2 1 . . . . . Drone Launches 1 | . . . . . . . . . . . . 1 . . . Drone Recoveries 1 | . . . . . . . . . . . . 1 . . . Exploration | -11 -10 -10 -10 -9 -8 -7 -7 -7 -7 -6 -6 -6 -6 -6 -6 ------------- Run | Yrd Mat Min Exi Min Mat Fac Low Low Zio Pro Fac Ext Cet Arc Hub Turns Passed 13011 | 157 1759 489 387 192 1571 869 900 207 1004 241 1837 1787 266 502 843 Spaces Moved 8150 | 68 602 242 337 213 978 657 819 156 965 224 1003 925 191 272 498 Core 4 | 3 . . . . . . . . . . . . . . 1 Treads 1022 | 65 602 242 113 . . . . . . . . . . . . Legs 7124 | . . . 224 213 978 657 819 156 965 224 1003 925 191 272 497 Wheels . | . . . . . . . . . . . . . . . . Hover . | . . . . . . . . . . . . . . . . Flight . | . . . . . . . . . . . . . . . . Fastest Speed 50 | 50 160 160 90 90 90 105 100 100 100 100 100 108 114 114 95 Average Speed 113 | 155 168 160 113 90 102 107 103 100 100 100 106 111 114 114 119 Slowest Speed 550 | 160 240 160 170 90 107 110 108 100 100 100 108 114 114 114 550 Overloaded Moves 13 | . . . . . . . . . . . . . . . 13 Propulsion Burnouts . | . . . . . . . . . . . . . . . . Robots Hopped . | . . . . . . . . . . . . . . . . Potential Cave-ins 5 | . . . . . . . . . . . . . . . 5 Cave-ins Triggered . | . . . . . . . . . . . . . . . . Exploration Rate (%) 58 | 5 87 60 72 45 61 22 95 32 87 49 22 75 81 96 48 Regions Visited 15 Branch Regions 11 Pre-discovered Areas 12 | . 1 . 1 1 3 . 2 . 2 . 2 . . . . Known Exits Taken 7 | . . 1 . . . 1 . . . 1 1 1 1 1 . Unknown Exits Taken 8 | 1 1 . 1 1 1 . 1 1 1 . . . . . . Scrap Searched 13 | . . 1 . 1 . . 5 1 4 1 . . . . . Spaces Dug 17 | . . . . . 3 2 . . . . 4 2 . . 6 Terrain Destroyed 617 | . . . . . 27 2 47 . . . 5 96 115 1 324 Melee 17 | . . . . . 3 2 . . . . 4 2 . . 6 Projectile 3 | . . . . . . . . . . . 1 1 . 1 . AOE 597 | . . . . . 24 . 47 . . . . 93 115 . 318 Terrain Rammed . | . . . . . . . . . . . . . . . . Walls Destroyed . | . . . . . . . . . . . . . . . . Machines Disabled . | . . . . . . . . . . . . . . . . Actions | -11 -10 -10 -10 -9 -8 -7 -7 -7 -7 -6 -6 -6 -6 -6 -6 --------- Run | Yrd Mat Min Exi Min Mat Fac Low Low Zio Pro Fac Ext Cet Arc Hub Total 11196 | 93 1210 299 340 213 1433 779 844 182 1004 230 1711 1577 207 415 659 Wait 2123 | . 470 27 . 1 321 70 1 10 13 . 620 425 . 95 70 Move 8135 | 67 601 241 336 212 977 656 818 155 964 223 1002 924 190 271 498 Hop . | . . . . . . . . . . . . . . . . Pick Up 109 | 6 22 3 . . 16 10 4 1 5 . 10 17 . 4 11 Fast Attach 45 | 6 3 . 2 . 7 2 . . 6 . 6 9 . 2 2 Attach 29 | 1 1 2 . . 3 2 3 2 . . 3 3 1 2 6 Detach 6 | . 1 . 1 . 2 . . . . . 1 1 . . . Swap 144 | . 19 1 . . 26 6 4 1 5 2 24 24 1 10 21 Drop 123 | . 19 2 1 . 22 11 1 . 10 . 15 29 . 3 10 Fire 359 | 13 74 23 . . 56 20 13 13 . 5 24 40 15 28 35 Melee 55 | . . . . . 3 2 . . 1 . 6 37 . . 6 Ram . | . . . . . . . . . . . . . . . . Kick . | . . . . . . . . . . . . . . . . Crush . | . . . . . . . . . . . . . . . . Escape Stasis . | . . . . . . . . . . . . . . . . Rewire 68 | . . . . . . . . . . . . 68 . . . Trap . | . . . . . . . . . . . . . . . . Miscellaneous . | . . . . . . . . . . . . . . . . Route ------- -11/Scrapyard -10/Materials (discovered 6 exits: *Mat x3 / [*Min x2] / Sub) -10/Mines (discovered 4 exits: *Mat x2 / *Exi / Sub) -10/Exiles -9/Mines -8/Materials -7/Factory -7/Lower Caves -7/Lower Caves -7/Zion -6/Proximity Caves -6/Factory (discovered 3 exits: *Fac / *Ext x2) -6/Extension (discovered 3 exits: *Fac x2 / *Cet) -6/Cetus -6/Archives (discovered 3 exits: *Fac / *Hub x2) -6/Hub_04(d) History --------- Turn | Location | Event 24 | -11/Scrapyard | Discovered new exit (range 16) 158 | -11/Scrapyard | Entered Materials 311 | -10/Materials | Build established: Mutant 540 | -10/Materials | Discovered new exit (range 9) 813 | -10/Materials | Discovered new exit (range 11) 876 | -10/Materials | Discovered new exit (range 13) 1187 | -10/Materials | Repaired Lgt. Treads 1215 | -10/Materials | Repaired Structural Scanner 1242 | -10/Materials | Repaired Sml. Laser 1247 | -10/Materials | Identified exit to Materials 1304 | -10/Materials | Loaded intel: 21 trap records 1351 | -10/Materials | Learned location of 2 exits from Mines 1372 | -10/Materials | Discovered exit to Materials (range 16) 1389 | -10/Materials | Identified exit to Subcaves 1415 | -10/Materials | Learned location of Mines (-10) 1451 | -10/Materials | Learned Materials trap positions 1496 | -10/Materials | Learned 4 Subcaves zone layouts 1917 | -10/Materials | Entered Mines 1918 | -10/Mines | Identified exit to Exiles 2044 | -10/Mines | Learned Materials trap positions 2049 | -10/Mines | Discovered exit to Materials (range 6) 2169 | -10/Mines | Discovered exit to Materials (range 6) 2399 | -10/Mines | Deemed a non-threat by the Exiles lab entrance 2406 | -10/Mines | Entered Exiles 2446 | -10/Exiles | Met 8R-AWN 2474 | -10/Exiles | Met EX-HEX 2518 | -10/Exiles | Met EX-BIN 2538 | -10/Exiles | Aligned with FarCom system 2539 | -10/Exiles | Given EX-Vault access code 2576 | -10/Exiles | Opened EX-Vault 2588 | -10/Exiles | Found Potential Leg 2591 | -10/Exiles | Found Potential Leg 2609 | -10/Exiles | Warned to stay clear of 0b10 Research branches 2634 | -10/Exiles | Met EX-DEC 2647 | -10/Exiles | Learned location of Zion (-7) 2782 | -10/Exiles | Discovered new exit (range 14) 2793 | -10/Exiles | Left Exiles lab with Potential Leg 2793 | -10/Exiles | Entered Mines 2822 | -9/Mines | Met a Derelict bent on vengeance 2948 | -9/Mines | Discovered new exit (range 7) 2969 | -9/Mines | Learned location of Recycling (-9) 2985 | -9/Mines | Entered Materials 2985 | -8/Materials | Evolved 4 slots: Propulsion x2, Utility x2 2986 | -8/Materials | Loaded intel: 13 trap records 3584 | -8/Materials | Repaired Broken Imp. Assault Rifle 4118 | -8/Materials | Discovered new exit (range 16) 4344 | -8/Materials | Learned Factory stockpile data 4363 | -8/Materials | Learned 4 Recycling zone layouts 4375 | -8/Materials | Learned 4 Recycling zone layouts 4377 | -8/Materials | Learned location of 1 exit from Storage 4556 | -8/Materials | Entered Factory 4556 | -7/Factory | Evolved 2 slots: Propulsion x1, Utility x1 4557 | -7/Factory | Identified exit to Lower Caves 5080 | -7/Factory | Garrison activated, responded to threat 5425 | -7/Factory | Entered Lower Caves 6081 | -7/Lower Caves | Discovered new exit (range 16) 6325 | -7/Lower Caves | Entered another Lower Caves area 6523 | -7/Lower Caves | Discovered new exit (range 13) 6532 | -7/Lower Caves | Entered Zion 6668 | -7/Zion | Discovered new exit (range 14) 6672 | -7/Zion | Given the Hacking Drone Bay 6681 | -7/Zion | Found Prototype Device 6733 | -7/Zion | System corruption cleaned by Quarantine Array 6802 | -7/Zion | Identified Hacking Drone Bay 6834 | -7/Zion | Received a visual enhancement algorithm 6834 | -7/Zion | Learned 4 Factory zone layouts 6837 | -7/Zion | Ran a visual enhancement algorithm 7012 | -7/Zion | Learned Factory emergency access door positions 7025 | -7/Zion | Learned location of 1 exit from Proximity Caves 7296 | -7/Zion | Learned location of Quarantine (-2) 7343 | -7/Zion | Rebuked by Imprinter 7351 | -7/Zion | Build established: Derelict-Mutant 7536 | -7/Zion | Entered Proximity Caves 7537 | -6/Proximity Caves | Identified exit to Factory 7665 | -6/Proximity Caves | Spotter reported a threat 7676 | -6/Proximity Caves | Spotter reported a threat 7684 | -6/Proximity Caves | Learned Factory emergency access door positions 7718 | -6/Proximity Caves | Spotter reported a threat 7776 | -6/Proximity Caves | Spotter reported a threat 7777 | -6/Proximity Caves | Entered Factory 7777 | -6/Factory | Evolved 2 slots: Utility x1, Weapon x1 7778 | -6/Factory | Identified exit to Extension 8076 | -6/Factory | Build established: Derelict-Skirmisher 8127 | -6/Factory | Search patrols dispatched 8207 | -6/Factory | Discovered new exit (range 15) 8224 | -6/Factory | Identified exit to Factory 8542 | -6/Factory | Repaired Imp. Medium Armor Plating 8587 | -6/Factory | Repaired Med. Reactive Plating 8660 | -6/Factory | Build established: Derelict-Mutant 9096 | -6/Factory | Learned location of Warlord (-5) 9152 | -6/Factory | Learned Extension stockpile data 9199 | -6/Factory | Learned Factory emergency access door positions 9234 | -6/Factory | Learned location of Proximity Caves (-4) 9277 | -6/Factory | Learned 2 Proximity Caves zone layouts 9330 | -6/Factory | Learned Extension emergency access door positions 9512 | -6/Factory | Build established: Infiltrator-Skirmisher 9614 | -6/Factory | Entered Extension 9617 | -6/Extension | Disrupted transfer network 10316 | -6/Extension | Rescued a captive Derelict 10625 | -6/Extension | Lost 3 allies 10657 | -6/Extension | Rescued a captive Derelict 10660 | -6/Extension | Rescued a captive Derelict 10707 | -6/Extension | Spotted B-75 Beast 10725 | -6/Extension | Allies destroyed B-75 Beast 10749 | -6/Extension | Spotted B-75 Beast 10755 | -6/Extension | Destroyed B-75 Beast 10813 | -6/Extension | Discovered exit to Factory (range 3) 10924 | -6/Extension | Discovered new exit (range 15) 10925 | -6/Extension | Discovered exit to Factory (range 15) 10965 | -6/Extension | Identified exit to Cetus 11006 | -6/Extension | Build established: Hacker-Skirmisher 11099 | -6/Extension | Rescued a captive Derelict 11401 | -6/Extension | Entered Cetus 11416 | -6/Cetus | Spotted Cetus Guard 11422 | -6/Cetus | Spotted Cetus Guard 11423 | -6/Cetus | Spotted Cetus Guard 11433 | -6/Cetus | Destroyed Cetus Guard 11434 | -6/Cetus | Spotted Cetus Guard 11440 | -6/Cetus | Destroyed Cetus Guard 11450 | -6/Cetus | Destroyed Cetus Guard 11460 | -6/Cetus | Destroyed Cetus Guard 11600 | -6/Cetus | Discovered new exit (range 16) 11616 | -6/Cetus | Identified exit to Archives 11642 | -6/Cetus | Spotted Cetus Guard 11667 | -6/Cetus | Entered Archives 11797 | -6/Archives | Unable to access archive contents 11996 | -6/Archives | Unable to access archive contents 12000 | -6/Archives | Discovered exit to Factory (range 16) 12056 | -6/Archives | Unable to access archive contents 12061 | -6/Archives | Discovered new exit (range 15) 12075 | -6/Archives | Identified exit to Hub_04(d) 12096 | -6/Archives | Discovered exit to Hub_04(d) (range 16) 12111 | -6/Archives | Build established: Hacker-Mutant 12169 | -6/Archives | Entered Hub_04(d) 12649 | -6/Hub_04(d) | Network Hub disabled 12675 | -6/Hub_04(d) | Core integrity fell below 50% 12953 | -6/Hub_04(d) | Network Hub disabled 12954 | -6/Hub_04(d) | System corruption reached 10% 12964 | -6/Hub_04(d) | Spotted Lightning 12976 | -6/Hub_04(d) | Spotted Lightning 12976 | -6/Hub_04(d) | Spotted Lightning 13007 | -6/Hub_04(d) | Core integrity fell below 20% 13012 | -6/Hub_04(d) | Destroyed by H-66 Slayer with Gauss Rifle Last Messages --------------- 13001_ Penetrated by Slug. 13001_ Imp. Medium Armor Plating destroyed. 13001_ U-05 Engineer lays Concrete. 13003_ Penetrated by EMDS Slug. 13003_ U-05 Engineer lays Concrete. 13004_ Arm. Leg destroyed. 13004_ U-05 Engineer builds a Wall. 13005_ Arm. Leg destroyed. 13006_ Penetrated by Slug. 13006_ Prc. Beam Rifle destroyed. 13006_ Penetrated by Slug. 13006_ Penetrated by EMDS Slug. 13007_ Penetrated by Slug. 13007_ Lgt. Fission Core destroyed. 13007_ Penetrated by Slug. 13008_ U-05 Engineer builds a Wall. 13009_ Penetrated by Slug. 13010_ Imp. Cooling System destroyed. 13011_ EMDS Slug penetrates Wall. 13012_ Penetrated by EMDS Slug. Map ----- +----------------------------------------------------+ | ##?????????????????????????????????????????? | | ##?????????????????????????????????????????? | | ##?????????????????????????????????????????? | | #??????????????????????????????????????????? | | #??????????????????????????????????????????? | | #??????????????????????????????????????????? | | #??????????????????????????????????????????? | | #??????????????????????????????????????????? | | #??????????????????????????????????????????? | | #??????????????????????????????????????????? | | #??????????????????????????????????????????? | | #???????????????????????????##?????????????? | | #####???????????????????#### ###???????????? | | #####???????????????????? # ##??????????? | | ##???????????????????? #??????????? | | = ##????????????????????# #######????? | | ##????????????????????# ############ | | ##???????????????###### # ####### | | ##???????????????######;;# ## | | ##???????????????##! ; # | | ##???????????????## ;;;;;;;;;;;"" # | | ##### ?????????## ;; " ## | | +##########+##??????##! ;; " # | | ##??????## ;; ; # | | ######## ##??????## ;; ; # | | ########?????????## @ ; # | | #+#######???????????# !=! ; # | | !# ???????? ==%! ; # | | """" + ????? % = " # | | """" # ?? #hh# " # | | """" # ??? ihh " ## | | """" # ??? # h " # | | ##???######### u# ;;;; ;;;;"" ?? | | "T"" ### ???????##### #; ; #?? | | """" ## ?????????? #" ; ????? | | ######### ???????? #" ;###?????? | | #########/####????????# ! #" ##???????? | | ################# ##???????? | | """" """" # # " ##???????? | | """" """" # " " " " " " " # ##???????? | | """ """" + " " " " " " " # """ #######??? | | "" """ # " " " " " " " + ########## | | # # # ##### | | #####+##+############+#####+####+## """## | | ##### %## """" # "## | | ?#### * ## """" # "## | | ?##"" ## """" # "## | | ?##"T %## """" # #########+## """## | | ##### ## # ##### # [ ##### | | #####^^^^## + #??## ########## | +----------------------------------------------------+ Best States ------------- Heat Dissipation 64 Energy Generation 19 Energy Capacity 315 Matter Stores 300 Matter Capacity 300 Sight Range 16 Robot Scan Range 15 Terrain Scan Density 10 ECM Strength 2 Jamming Range 12 Armor Coverage 450 Resistance: KI 30 Core Shielding 20 Evasion (%) 57 Targeting Accuracy 8 Recoil Reduction 2 Offensive Hacking 12 Defensive Hacking 10 Item Schematics ----------------- Xenon Bombardment Thruster | -7/Zion | Archive Nuclear Pulse Thruster | -7/Zion | Archive Fission Core | -7/Zion | Archive Armor Integrity Analyzer | -7/Zion | Archive Lgt. Fission Core | -7/Zion | Archive Med. Reactive Plating | -7/Zion | Archive Imp. Particle Charger | -7/Zion | Archive Imp. Weapon Cycler | -7/Zion | Archive Gravmag System | -7/Zion | Archive Hvy. Phase Cannon | -7/Zion | Archive EM Disruption Field | -7/Zion | Archive Fusion Compressor | -7/Zion | Archive Lightning Gun | -7/Zion | Archive Lyr. Light Armor Plating | -7/Zion | Archive Lrn. Phase Cannon | -7/Zion | Archive Robot Schematics ------------------ S-27 Virus | -7/Zion | Archive L-41 Fighter | -7/Zion | Archive H-55 Commando | -7/Zion | Archive Fabricated ------------ Nothing Repaired ---------- Lgt. Treads | 16% | -10/Materials Structural Scanner | 45% | -10/Materials Sml. Laser | 45% | -10/Materials Imp. Assault Rifle | 48% | -8/Materials | Broken Imp. Medium Armor Plating | 39% | -6/Factory Med. Reactive Plating | 60% | -6/Factory Alien Tech Used ----------------- None Achievements -------------- None Challenges ------------ None Game ------ Seed SpacefoldImpulseDatajack Manual? 0 Play Time 02:41:48 Cumulative 75.1 hours Start 2025.07.10 @ 22:06:19 End 2025.07.11 @ 05:18:26 Sessions 5 Manual Loads 0 Difficulty Rogue Special Mode None Game No. 79 Rogue 79 Adventurer 0 Explorer 0 Win Type - Total 0 Types 0/0/0/0/0/0/0/0/0/0 Lore% 41 Gallery% 39 Achievement% 30 Wizard Run 0 Options --------- Layout 1 ASCII 0 Keyboard 0 Movement Mouse Keybinds 0 Fullscreen 2 Font 48/Smallcaps Map View 50x35 Zoom Use 0% Tactical HUD 1 Map Filters NONE Filters NONE Steam 0 RUN: 6dec5faa-1439-413a-9409-a4814640966b